bitfinex/quotes_SOLUSD_20220218
["timestamp","ask_amount","ask_price","bid_price","bid_amount"]
[1645199579533,6.0,90.893,90.85,29.3329]
[1645199579735,0.25,90.892,90.85,29.3329]
[1645199579933,0.25,90.894,90.85,29.3329]
[1645199580537,5.502,90.893,90.85,12.82]
[1645199580737,1.49750733,90.885,90.85,12.82]
[1645199580934,1.49750733,90.883,90.85,12.82]
[1645199581133,11.752,90.884,90.85,12.82]
[1645199581134,11.752,90.882,90.85,12.82]
[1645199581335,0.25,90.881,90.85,12.82]
[1645199581536,41.76537314,90.881,90.85,12.82]
[1645199581737,6.0,90.88,90.85,12.82]
[1645199581937,0.25,90.879,90.85,12.82]
[1645199582836,0.25,90.886,90.85,12.82]
[1645199583340,1.74750733,90.886,90.85,12.82]
[1645199583537,7.49750733,90.885,90.85,12.82]
[1645199583741,5.502,90.91,90.851,110.1]
[1645199583939,2.97797026,90.925,90.853,110.1]
[1645199584140,5.501,90.924,90.855,110.1]
[1645199584339,5.501,90.924,90.87,12.82]
[1645199584541,2.97797026,90.933,90.871,115.85]
[1645199584838,6.24693647,90.932,90.88,16.508]
[1645199585040,5.5,90.937,90.89,12.82]
[1645199585238,12.24693647,90.936,90.891,55.13635526]
[1645199585438,6.0,90.936,90.891,55.13635526]
[1645199585638,6.0,90.942,90.891,55.13635526]
[1645199585841,5.499,90.944,90.892,110.1]
[1645199586139,6.2454928,90.943,90.892,112.7293831]
[1645199586339,6.2454928,90.943,90.894,110.1]
[1645199586639,6.2454928,90.943,90.896,110.1]
[1645199586839,2.97797026,90.952,90.91,12.82]
[1645199587042,2.97797026,90.964,90.92,16.502]
[1645199587238,2.97797026,90.964,90.921,115.598]
[1645199587439,6.2443445,90.963,90.921,115.598]
[1645199587641,6.2443445,90.963,90.922,2.8793831]
[1645199587840,2.97797026,90.982,90.923,5.497]
[1645199588041,6.0,90.981,90.924,0.25]
[1645199588240,6.0,90.982,90.925,5.497]
[1645199588443,11.497,90.997,90.927,110.1]
[1645199588644,11.497,90.997,90.94,12.82]
[1645199588841,5.497,90.997,90.942,110.1]
[1645199589042,2.97797026,91.016,90.944,110.1]
[1645199589242,5.496,91.025,90.946,110.1]
[1645199589442,2.97797026,91.04,90.96,12.82]
[1645199589648,6.23873315,91.052,90.97,12.82]
[1645199589842,6.23873315,91.052,90.98,12.82]
[1645199590045,2.97797026,91.067,90.981,121.843]
[1645199590245,2.97797026,91.067,90.981,143.41286031]
[1645199590445,2.97797026,91.083,90.982,2.6293831]
[1645199590648,2.97797026,91.097,90.991,110.1]
[1645199590846,2.97797026,91.097,91.001,110.1]
[1645199590847,5.492,91.092,91.001,110.1]
[1645199591049,46.35967746,91.096,91.011,110.1]
[1645199591247,46.35967746,91.096,91.021,110.1]
[1645199591446,46.35967746,91.096,91.03,12.82]
[1645199591651,40.86967746,91.096,91.04,29.3001]
[1645199591945,40.86967746,91.096,91.041,5.49]
[1645199592143,5.49,91.095,91.04,12.82]
[1645199592745,6.0,91.094,91.02,12.82]
[1645199592945,5.74,91.093,91.02,12.82]
[1645199593145,6.0,91.092,91.02,12.82]
[1645199593345,5.74,91.091,91.02,12.82]
[1645199593547,6.0,91.09,91.02,12.82]
[1645199593746,5.74,91.089,91.02,12.82]
[1645199593953,6.0,91.088,91.02,12.82]
[1645199594146,6.0,91.088,90.99,12.82]
[1645199594147,110.1,91.079,90.99,12.82]
[1645199594345,5.0,91.072,90.972,1.17240337]
[1645199594648,5.0,91.062,90.972,1.17240337]
[1645199594846,110.1,91.06,90.972,1.17240337]
[1645199595046,110.1,91.056,90.972,1.17240337]
[1645199595247,16.4995,91.04,90.972,1.17240337]
[1645199595446,11.743,91.039,90.972,1.17240337]
[1645199595650,6.25,91.039,90.972,1.17240337]
[1645199595950,29.32940855,91.038,90.972,1.17240337]
[1645199596149,47.50426923,91.037,90.978,50.59372389]
[1645199596347,16.4995,91.03,90.978,50.59372389]
[1645199596652,11.744,91.029,90.978,50.59372389]
[1645199597047,5.43865573,90.98,90.978,50.59372389]
[1645199599457,6.0,91.029,90.979,9.0494033]
[1645199599654,6.0,91.038,90.98,12.82]
[1645199599853,6.0,91.047,90.981,5.493]
[1645199600053,5.493,91.046,90.981,5.493]
[1645199600352,46.83154406,91.044,90.982,0.25]
[1645199600555,6.0,91.043,90.983,5.493]
[1645199600753,6.0,91.043,90.984,0.25]
[1645199600956,6.0,91.043,90.985,5.493]
[1645199601454,5.493,91.077,90.986,2.8793831]
[1645199601656,5.493,91.077,91.001,110.1]
[1645199601853,5.493,91.077,91.003,110.1]
[1645199602052,6.0,91.076,91.005,110.1]
[1645199602257,23.31951514,91.076,91.007,53.61346791]
[1645199602454,41.91310681,91.074,91.02,12.82]
[1645199602754,6.0,91.073,91.021,47.34600796]
[1645199602953,6.25,91.073,91.022,5.49]
[1645199603359,0.25,91.073,91.022,8.1193831]
[1645199603554,5.49,91.088,91.023,112.7293831]
[1645199603756,6.0,91.087,91.023,112.7293831]
[1645199603956,29.3045744,91.087,91.025,110.1]
[1645199604153,29.3045744,91.087,91.03,12.82]
[1645199604154,84.09549254,91.087,91.03,12.82]
[1645199604355,23.3045744,91.086,91.031,5.49]
[1645199604656,6.0,91.085,91.031,5.49]
[1645199604858,115.59,91.084,91.011,5.49]
[1645199605056,110.1,91.082,91.011,5.49]
[1645199605259,110.1,91.08,90.982,5.49]
[1645199605456,6.25,91.079,90.982,5.49]
[1645199605656,5.742,91.079,90.982,5.49]
[1645199605857,6.0,91.078,90.983,47.12015293]
[1645199606156,5.742,91.077,90.984,5.492]
[1645199606360,16.4912,91.07,90.984,8.1213831]
[1645199606556,51.45980253,91.068,90.984,8.1213831]
[1645199606759,11.742,91.067,90.983,44.49076983]
[1645199606958,110.1,91.066,90.98,12.82]
[1645199607259,110.1,91.064,90.946,5.493]
[1645199607461,110.1,91.057,90.94,12.82]
[1645199607661,110.1,91.055,90.94,12.82]
[1645199607860,42.11963487,91.054,90.95,2.6293831]
[1645199608059,115.593,91.053,90.982,46.02831994]
[1645199608259,110.1,91.051,90.982,46.02831994]
[1645199608462,110.1,91.049,91.033,1.16266074]
[1645199608659,110.1,91.047,91.033,1.16266074]
[1645199608861,1.16266073,91.028,90.951,5.493]
[1645199609060,11.745,91.027,90.951,5.493]
[1645199609260,35.0495744,91.027,90.951,5.493]
[1645199609659,110.1,91.025,90.951,5.493]
[1645199609861,110.1,91.023,90.93,12.82]
[1645199610061,110.1,91.021,90.916,110.1]
[1645199610259,110.1,91.019,90.917,5.496]
[1645199610459,110.1,91.017,90.917,5.496]
[1645199610661,110.1,91.015,90.917,5.496]
[1645199610961,110.1,91.013,90.918,41.36131263]
[1645199611160,156.10741332,91.01,90.919,5.496]
[1645199611363,6.25,91.009,90.919,5.496]
[1645199611561,5.496,91.008,90.92,2.6293831]
[1645199611761,6.25,91.007,90.92,2.6293831]
[1645199611962,5.496,91.006,90.93,12.82]
[1645199612161,6.25,91.005,90.93,12.82]
[1645199612369,5.496,91.004,90.931,2.6293831]
[1645199612562,6.25,91.003,90.932,51.0982014]
[1645199612768,5.496,91.002,90.933,110.1]
[1645199613062,0.25,91.001,90.934,5.496]
[1645199613261,0.25,91.001,90.935,0.25]
[1645199613463,0.25,91.001,90.936,5.496]
[1645199613660,23.3045744,91.0,90.936,5.496]
[1645199613866,0.25,90.999,90.936,8.1253831]
[1645199614062,0.25,90.999,90.937,2.6293831]
[1645199614262,23.3045744,90.998,90.937,2.6293831]
[1645199614463,49.77828873,90.996,90.937,2.6293831]
[1645199614685,6.0,90.995,90.937,2.6293831]
[1645199615564,0.25,90.994,90.937,2.6293831]
[1645199615963,0.25,91.007,90.937,2.6293831]
[1645199616164,6.24096651,91.006,90.937,2.6293831]
[1645199616366,6.25,91.005,90.937,2.6293831]
[1645199616663,77.10412154,91.004,90.937,2.6293831]
[1645199616866,6.25,91.003,90.937,2.6293831]
[1645199617064,29.63766576,91.003,90.937,2.6293831]
[1645199617465,23.38766576,91.002,90.937,2.6293831]
[1645199617666,6.25,91.001,90.937,2.6293831]
[1645199618068,5.496,91.0,90.92,2.6293831]
[1645199618267,6.25,90.999,90.92,2.6293831]
[1645199618468,11.73761953,90.998,90.939,1.03237781]
[1645199618669,12.49161953,90.997,90.939,1.03237781]
[1645199618874,126.6037,90.99,90.939,1.03237781]
[1645199619070,110.1,90.988,90.939,1.03237781]
[1645199619270,17.98845078,90.987,90.939,1.03237781]
[1645199619470,6.24245078,90.986,90.939,1.03237781]
[1645199619670,1.01486218,90.935,90.881,115.596]
[1645199619877,16.5075,90.98,90.904,2.6293831]
[1645199620072,6.25,90.979,90.905,5.498]
[1645199620270,6.0,90.978,90.91,12.82]
[1645199620476,0.25,90.977,90.911,5.497]
[1645199620672,5.497,90.976,90.91,12.82]
[1645199620873,49.16715107,90.975,90.911,52.59859057]
[1645199621072,5.497,90.974,90.911,52.59859057]
[1645199621272,6.25,90.973,90.911,52.59859057]
[1645199621478,5.498,90.972,90.911,55.22797367]
[1645199621676,0.25,90.971,90.912,110.35]
[1645199621874,0.25,90.971,90.913,5.498]
[1645199622073,0.25,90.971,90.914,110.35]
[1645199622286,0.25,90.971,90.915,5.497]
[1645199622487,0.25,90.971,90.92,12.82]
[1645199622686,0.25,90.971,90.921,5.747]
[1645199622890,0.25,90.986,90.921,8.3763831]
[1645199623087,6.0,90.992,90.922,2.6293831]
[1645199623287,23.36599005,90.985,90.923,5.747]
[1645199623486,6.0,90.984,90.942,46.30039606]
[1645199624095,6.0,90.99,90.942,46.30039606]
[1645199624292,0.25,90.989,90.942,46.30039606]
[1645199624491,23.37336706,90.989,90.942,46.30039606]
[1645199624690,6.25,90.988,90.942,46.30039606]
[1645199625293,6.0,90.987,90.942,46.30039606]
[1645199625492,0.25,90.986,90.942,46.30039606]
[1645199625692,6.25,90.986,90.942,46.30039606]
[1645199625892,23.37336706,90.985,90.942,46.30039606]
[1645199626194,6.25,90.984,90.941,1.03205794]
[1645199626392,5.496,90.983,90.941,1.03205794]
[1645199626593,6.25,90.982,90.941,1.03205794]
[1645199626792,5.496,90.981,90.941,1.03205794]
[1645199626993,41.34991461,90.979,90.941,1.03205794]
[1645199627192,6.25,90.978,90.941,1.03205794]
[1645199627395,115.596,90.977,90.941,1.03205794]
[1645199627593,6.25,90.976,90.941,1.03205794]
[1645199627795,28.87036706,90.975,90.941,5.794e-05]
[1645199627995,6.25,90.974,90.941,5.794e-05]
[1645199628195,5.497,90.973,90.941,5.794e-05]
[1645199628394,6.25,90.972,90.891,0.90253093]
[1645199628595,5.498,90.971,90.891,0.90253093]
[1645199628794,39.66161943,90.969,90.892,50.46862585]
[1645199628995,16.5088,90.96,90.892,50.46862585]
[1645199629199,11.748,90.959,90.893,110.1]
[1645199629396,0.25,90.959,90.894,5.498]
[1645199629597,0.25,90.959,90.895,110.1]
[1645199629801,0.25,90.959,90.896,5.498]
[1645199630099,0.25,90.959,90.92,16.5018]
[1645199630302,0.25,90.983,90.921,54.79947148]
[1645199630705,23.45954734,90.982,90.922,2.6293831]
[1645199631004,6.0,90.981,90.923,5.747]
[1645199631405,6.0,90.981,90.924,2.6293831]
[1645199631602,23.70954734,90.98,90.924,2.6293831]
[1645199631808,23.70954734,90.98,90.921,49.05147148]
[1645199631809,6.0,90.979,90.921,49.05147148]
[1645199632003,0.25,90.978,90.921,49.05147148]
[1645199632403,23.45954734,90.977,90.93,16.5004]
[1645199632609,6.0,90.976,90.93,16.5004]
[1645199632802,6.0,90.976,90.931,2.8793831]
[1645199633002,6.0,90.976,90.932,5.497]
[1645199633205,6.0,90.976,90.933,0.25]
[1645199633410,2.97797026,91.008,90.93,12.82]
[1645199633604,23.48335714,90.975,90.93,12.82]
[1645199633905,6.25,90.974,90.93,12.82]
[1645199634503,23.48335714,90.973,90.93,12.82]
[1645199634804,6.25,90.972,90.93,12.82]
[1645199635204,23.48335714,90.971,90.93,12.82]
[1645199635404,6.25,90.97,90.93,12.82]
[1645199635805,6.25,90.97,90.921,49.05147148]
[1645199636007,28.98035714,90.969,90.921,49.05147148]
[1645199636206,6.25,90.968,90.891,5.497]
[1645199636406,12.49265502,90.968,90.891,5.497]
[1645199636605,35.22401216,90.967,90.89,12.82]
[1645199636810,12.49265502,90.966,90.89,12.82]
[1645199637006,5.498,90.965,90.89,12.82]
[1645199637207,41.31126332,90.963,90.9,16.5059]
[1645199637408,126.6081,90.96,90.885,5.498]
[1645199637607,11.498,90.959,90.872,5.498]
[1645199637806,6.49265502,90.958,90.872,5.498]
[1645199638007,17.74065502,90.957,90.872,5.498]
[1645199638206,6.49265502,90.956,90.875,5.498]
[1645199638408,17.74065502,90.955,90.898,40.53987247]
[1645199638607,6.24265502,90.954,90.898,40.53987247]
[1645199638806,23.48335714,90.955,90.898,40.53987247]
[1645199639008,23.48335714,90.953,90.899,2.6293831]
[1645199639208,6.0,90.952,90.899,2.6293831]
[1645199639807,23.73335714,90.951,90.899,2.6293831]
[1645199640008,55.26625057,90.949,90.9,16.5066]
[1645199640211,11.749,90.948,90.88,67.8355]
[1645199640610,23.48335714,90.947,90.88,67.8355]
[1645199640810,6.25,90.946,90.88,67.8355]
[1645199641008,6.25,90.946,90.881,53.21400276]
[1645199641510,23.48335714,90.945,90.89,16.5095]
[1645199641712,6.25,90.944,90.89,16.5095]
[1645199642309,23.48335714,90.943,90.881,53.21400276]
[1645199642509,6.25,90.942,90.881,53.21400276]
[1645199642713,16.5108,90.94,90.881,53.21400276]
[1645199642911,11.749,90.939,90.881,53.21400276]
[1645199643111,35.23235714,90.939,90.881,53.21400276]
[1645199643515,29.72789734,90.938,90.881,53.21400276]
[1645199643712,17.9935402,90.937,90.881,53.21400276]
[1645199643911,16.5127,90.93,90.881,53.21400276]
[1645199644110,6.0,90.929,90.881,55.84338586]
[1645199644311,6.0,90.937,90.881,55.84338586]
[1645199644713,6.0,90.955,90.881,55.84338586]
[1645199644912,23.56858778,90.936,90.882,110.35]
[1645199645111,23.56858778,90.936,90.91,16.5058]
[1645199645315,46.82998537,90.951,90.911,44.33356521]
[1645199645511,46.82998537,90.951,90.911,46.96294831]
[1645199645711,23.56858778,90.95,90.911,46.96294831]
[1645199646111,23.56858778,90.95,90.92,16.5042]
[1645199646913,23.56858778,90.968,90.92,16.5042]
[1645199647123,6.0,90.967,90.92,16.5042]
[1645199647714,23.56858778,90.966,90.93,16.5026]
[1645199648115,23.56858778,90.983,90.93,16.5026]
[1645199648322,6.0,90.982,90.93,16.5026]
[1645199648716,40.27872201,90.981,90.94,16.5002]
[1645199648915,6.0,90.98,90.94,16.5002]
[1645199649316,4.46735318,91.02,90.931,52.63638552]
[1645199649317,23.56858778,90.979,90.941,8.3753831]
[1645199649718,23.56858778,91.003,90.942,2.6293831]
[1645199649916,23.56858778,91.003,90.94,12.82]
[1645199649917,6.0,91.002,90.95,16.4971]
[1645199650117,74.58340237,91.001,90.94,12.82]
[1645199650322,121.596,91.0,90.92,12.82]
[1645199650522,130.81448929,91.0,90.914,2.6293831]
[1645199650719,2.97797026,90.995,90.915,0.25]
[1645199650917,14.47497026,90.994,90.915,0.25]
[1645199651120,6.49051903,90.993,90.915,0.25]
[1645199651316,17.73751903,90.992,90.915,0.25]
[1645199651523,16.503,90.99,90.92,16.5031]
[1645199651718,6.25,90.989,90.916,8.1263831]
[1645199651920,6.24051903,90.988,90.916,5.497]
[1645199652116,2.97797026,90.985,90.904,2.6293831]
[1645199652320,11.747,90.984,90.894,2.6293831]
[1645199652517,2.97797026,90.982,90.894,2.6293831]
[1645199652717,11.748,90.981,90.894,2.6293831]
[1645199652919,43.0886364,90.98,90.895,47.52917652]
[1645199653217,16.5064,90.97,90.91,16.5062]
[1645199653520,6.25,90.969,90.911,40.26393527]
[1645199653716,6.0,90.968,90.943,0.77367521]
[1645199653917,0.25,90.967,90.943,0.77367521]
[1645199654117,41.60502639,90.966,90.943,0.77367521]
[1645199654316,0.25,90.965,90.943,0.77367521]
[1645199654719,23.56858778,90.964,90.943,0.77367521]
[1645199654922,6.25,90.963,90.943,0.77367521]
[1645199655518,23.56858778,90.962,90.943,1e-08]
[1645199655721,6.25,90.961,90.943,1e-08]
[1645199656422,23.56858778,90.96,90.943,1e-08]
[1645199656619,0.25,90.959,90.943,1e-08]
[1645199657219,23.56858778,90.958,90.943,1e-08]
[1645199657422,0.25,90.957,90.943,1e-08]
[1645199657622,23.56858778,90.958,90.943,1e-08]
[1645199657827,23.56858778,90.958,90.944,2.6293831]
[1645199658023,54.75039573,90.996,90.945,0.25]
[1645199658225,6.25,90.995,90.945,0.25]
[1645199658524,23.56858778,90.995,90.946,2.6293831]
[1645199658723,23.56858778,90.995,90.947,5.746]
[1645199658923,23.56858778,91.009,90.95,12.82]
[1645199659123,23.56858778,91.009,90.96,16.4935]
[1645199659324,23.56858778,90.994,90.96,29.3135]
[1645199659524,23.56858778,90.994,90.961,46.465304]
[1645199659723,6.0,90.993,90.961,46.465304]
[1645199659927,6.0,91.006,90.961,46.465304]
[1645199660123,23.56858778,90.992,90.961,46.465304]
[1645199660324,6.0,90.991,90.962,0.25]
[1645199660524,6.0,90.991,90.962,2.6293831]
[1645199660725,6.0,91.004,90.963,2.6293831]
[1645199660925,23.56858778,90.99,90.964,0.25]
[1645199661127,6.25,90.989,90.961,51.960304]
[1645199661328,6.25,90.989,90.97,16.4947]
[1645199661525,6.25,90.989,90.951,5.496]
[1645199661725,29.56858778,90.988,90.95,12.82]
[1645199661926,0.25,90.987,90.95,12.82]
[1645199662124,29.81858778,90.987,90.95,12.82]
[1645199662335,6.0,90.986,90.95,12.82]
[1645199662528,23.81858778,90.985,90.95,12.82]
[1645199662727,6.0,90.984,90.95,12.82]
[1645199663025,23.56858778,90.983,90.951,0.25]
[1645199663227,6.0,90.982,90.963,0.67376802]
[1645199663452,6.0,90.982,90.963,48.30696811]
[1645199663645,6.0,90.982,90.964,0.25]
[1645199663845,23.56858778,90.981,90.964,0.25]
[1645199665250,23.56858778,90.981,90.97,16.4943]
[1645199665447,23.56858778,90.981,90.971,2.08659201]
[1645199665948,23.56858778,90.981,90.972,2.8793831]
[1645199666146,23.56858778,90.981,90.971,2.08659201]
[1645199666347,41.56038099,91.021,90.971,2.08659201]
[1645199666348,23.56858778,91.02,90.98,16.4928]
[1645199666648,23.56858778,91.02,90.981,55.03910192]
[1645199666847,6.0,91.019,90.981,55.03910192]
[1645199667146,23.56858778,91.018,90.981,55.03910192]
[1645199667551,45.89022756,91.017,90.981,55.03910192]
[1645199667752,6.0,91.016,90.981,55.03910192]
[1645199667951,29.56858778,91.016,90.981,55.03910192]
[1645199668151,29.56858778,91.016,90.98,16.4928]
[1645199668351,23.56858778,91.015,90.98,16.4928]
[1645199668549,6.25,91.014,90.98,16.4928]
[1645199668951,6.25,91.014,90.97,16.4947]
[1645199669152,23.56858778,91.013,90.97,16.4947]
[1645199669352,23.56858778,91.013,90.95,12.82]
[1645199669353,6.25,91.012,90.95,12.82]
[1645199669952,23.56858778,91.011,90.95,12.82]
[1645199670154,6.25,91.01,90.951,51.95633831]
[1645199670356,6.25,91.01,90.96,16.4964]
[1645199670753,23.56858778,91.009,90.96,16.4964]
[1645199670953,6.25,91.008,90.96,16.4964]
[1645199671154,23.56858778,91.007,90.96,16.4964]
[1645199671357,6.25,91.006,90.96,16.4964]
[1645199671752,6.25,91.006,90.951,51.95633831]
[1645199671753,23.56858778,91.005,90.951,51.95633831]
[1645199671956,48.92481228,91.003,90.951,51.95633831]
[1645199672155,6.25,91.002,90.951,51.95633831]
[1645199672555,23.56858778,91.001,90.95,29.318]
[1645199672756,116.35,91.0,90.928,5.495]
[1645199673058,116.35,91.0,90.903,5.496]
[1645199673059,5.496,90.999,90.903,5.496]
[1645199673256,6.25,90.998,90.9,12.82]
[1645199673456,5.497,90.997,90.9,12.82]
[1645199673658,16.5028,90.99,90.901,53.28280358]
[1645199673857,54.12259463,90.988,90.902,110.35]
[1645199674058,54.12259463,90.988,90.903,5.497]
[1645199674059,6.0,90.987,90.903,5.497]
[1645199674359,6.0,90.987,90.905,110.1]
[1645199674557,6.0,90.987,90.904,6.25]
[1645199674558,23.56858778,90.986,90.921,110.1]
[1645199674757,23.56858778,90.986,90.906,11.747]
[1645199674758,6.0,90.985,90.94,16.4967]
[1645199674957,6.0,90.985,90.95,12.82]
[1645199675157,0.25,90.984,90.95,12.82]
[1645199675360,23.81858778,90.984,90.95,12.82]
[1645199675560,6.0,90.983,90.951,48.0722426]
[1645199675758,6.0,90.983,90.952,115.596]
[1645199675957,6.0,90.982,90.953,0.25]
[1645199676158,6.0,90.982,90.953,2.8793831]
[1645199676458,6.0,90.982,90.96,16.4931]
[1645199676656,6.0,91.008,90.96,29.3131]
[1645199676858,0.25,91.007,90.96,29.3131]
[1645199677057,23.83176907,91.007,90.96,29.3131]
[1645199677260,6.0,91.006,90.96,29.3131]
[1645199677458,0.25,91.005,90.96,29.3131]
[1645199677858,23.58176907,91.004,90.96,29.3131]
[1645199678058,6.25,91.003,90.96,29.3131]
[1645199678657,23.58176907,91.002,90.96,29.3131]
[1645199678858,6.25,91.001,90.96,29.3131]
[1645199679458,23.58176907,91.0,90.96,29.3131]
[1645199679659,6.25,90.999,90.96,29.3131]
[1645199680362,23.58176907,90.998,90.96,29.3131]
[1645199680559,6.25,90.997,90.951,5.495]
[1645199680761,6.25,90.997,90.941,2.6293831]
[1645199680962,5.496,90.996,90.923,0.81710433]
[1645199681161,6.25,90.995,90.923,0.81710433]
[1645199681359,43.29344833,90.993,90.924,52.79183588]
[1645199681567,6.25,90.992,90.924,55.42121898]
[1645199682060,23.58176907,90.991,90.925,2.6293831]
[1645199682260,6.25,90.99,90.926,0.25]
[1645199682463,6.25,90.99,90.93,16.5016]
[1645199682661,23.58176907,90.989,90.931,0.25]
[1645199682862,6.25,90.988,90.931,2.6293831]
[1645199683463,23.58176907,90.987,90.931,2.6293831]
[1645199683663,6.25,90.986,90.962,0.81086719]
[1645199684064,23.58176907,90.985,90.962,0.81086719]
[1645199684264,6.25,90.984,90.962,0.81086719]
[1645199684863,23.58176907,90.983,90.962,0.81086719]
[1645199685064,6.25,90.982,90.962,0.81086719]
[1645199685665,23.58176907,90.981,90.962,0.81086719]
[1645199685867,6.25,90.98,90.962,0.81086719]
[1645199686164,6.0,90.98,90.962,0.81086719]
[1645199686367,23.58176907,90.979,90.962,0.81086719]
[1645199686765,23.58176907,90.996,90.962,0.81086719]
[1645199687164,44.34097839,90.995,90.962,0.81086719]
[1645199687767,23.58176907,90.994,90.962,0.81086719]
[1645199688169,6.0,90.993,90.962,0.81086719]
[1645199688374,6.0,90.993,90.96,0.81054748]
[1645199688570,23.58176907,90.992,90.96,0.81054748]
[1645199688770,0.25,90.991,90.96,0.81054748]
[1645199688971,6.25,90.991,90.96,0.81054748]
[1645199689372,23.58176907,90.99,90.96,0.81054748]
[1645199689572,0.25,90.989,90.96,0.81054748]
[1645199689774,6.25,90.989,90.96,0.81054748]
[1645199689975,0.25,90.989,90.96,0.81054748]
[1645199690175,23.58176907,90.988,90.96,0.81054748]
[1645199690373,0.25,90.987,90.96,0.81054748]
[1645199690878,0.25,90.987,90.936,5.496]
[1645199691075,0.25,90.987,90.91,73.3181]
[1645199691076,29.07776907,90.986,90.91,73.3181]
[1645199691278,6.25,90.985,90.915,2.6293831]
[1645199691477,5.497,90.984,90.915,2.6293831]
[1645199691675,6.25,90.983,90.916,50.38719285]
[1645199691875,54.95103007,90.979,90.92,16.5034]
[1645199692076,6.25,90.978,90.921,5.497]
[1645199692274,29.83176907,90.978,90.922,0.25]
[1645199692473,29.83176907,90.978,90.921,2.6293831]
[1645199692674,23.58176907,90.977,90.921,2.6293831]
[1645199692875,6.25,90.976,90.921,2.6293831]
[1645199693273,6.25,90.976,90.962,0.81086719]
[1645199693479,23.58176907,90.975,90.962,0.81086719]
[1645199693677,6.25,90.974,90.962,0.81086719]
[1645199693876,6.25,90.974,90.962,6.719e-05]
[1645199694276,23.58176907,90.973,90.962,6.719e-05]
[1645199694477,6.25,90.972,90.962,6.719e-05]
[1645199694678,23.58176907,90.971,90.962,6.719e-05]
[1645199695176,23.58176907,90.996,90.962,6.719e-05]
[1645199695377,6.0,90.995,90.962,6.719e-05]
[1645199695981,29.32676907,90.994,90.962,6.719e-05]
[1645199696179,110.1,90.989,90.962,6.719e-05]
[1645199696378,6.25,90.988,90.962,6.719e-05]
[1645199696879,23.58176907,90.987,90.962,6.719e-05]
[1645199697078,6.25,90.986,90.962,6.719e-05]
[1645199697796,23.58176907,90.985,90.962,6.719e-05]
[1645199697998,6.25,90.984,90.962,6.719e-05]
[1645199698399,23.58176907,90.983,90.936,45.22803395]
[1645199698799,56.67201823,90.982,90.936,45.22803395]
[1645199699200,23.58176907,90.981,90.936,45.22803395]
[1645199699400,6.0,90.98,90.936,45.22803395]
[1645199699801,0.25,90.979,90.936,45.22803395]
[1645199700002,23.58176907,90.979,90.936,45.22803395]
[1645199700205,6.0,90.978,90.936,45.22803395]
[1645199700402,6.0,90.978,90.935,16.5454]
[1645199700604,6.0,90.978,90.848,11.49011707]
[1645199700605,6.0,90.978,90.92,16.5033]
[1645199700802,29.07876907,90.977,90.901,5.497]
[1645199701007,6.0,90.976,90.9,29.4613]
[1645199701210,5.498,90.975,90.9,12.82]
[1645199701504,6.25,90.974,90.901,48.60143366]
[1645199701703,5.498,90.973,90.901,48.60143366]
[1645199701904,6.25,90.972,90.9,12.82]
[1645199702106,29.83176907,90.972,90.9,12.82]
[1645199702303,16.5057,90.97,90.9,12.82]
[1645199702506,16.5057,90.97,90.91,16.5053]
[1645199702507,6.25,90.969,90.91,16.5053]
[1645199702904,53.7898583,90.968,90.911,53.19253541]
[1645199703104,6.25,90.967,90.911,53.19253541]
[1645199703505,23.58176907,90.966,90.911,53.19253541]